[Event "XIV Closed IM BCC 2021"]
[Site "Barcelona"]
[Date "2021.05.03"]
[Round "1.1"]
[White "Boyer, Mahel"]
[Black "Msellek, Ilyass"]
[Result "1/2-1/2"]
[ECO "C10"]
[WhiteElo "2333"]
[BlackElo "2342"]
[Annotator "NA"]
[PlyCount "27"]
[EventDate "2021.05.03"]
[EventType "tourn"]
[EventCountry "ESP"]
[SourceTitle "playchess.com"]
[Source "ChessBase"]
[SourceQuality "1"]
[TimeControl "5400+30"]

1. e4 {[%emt 0:00:44]} e6 {[%emt 0:00:00]} 2. d4 {[%emt 0:00:08]} d5 {[%emt 0:00:40]} 3. Nc3 {[%emt 0:00:12]} dxe4 {[%emt 0:00:28]} 4. Nxe4 {[%emt 0:00:14]} Bd7 {[%emt 0:00:34]} 5. Nf3 {[%emt 0:10:00]} Bc6 {[%emt 0:00:42]} 6. Neg5 {[%emt 0:02:10]} Nd7 {[%emt 0:08:21]} 7. Nxf7 {[%emt 0:12:20]} Kxf7 {[%emt 0:01:56]} 8. Ng5+ {[%emt 0:00:06]} Ke8 {[%emt 0:16:19]} 9. Nxe6 {[%emt 0:00:10]} Qe7 {[%emt 0:00:22]} 10. Qe2 {[%emt 0:00:33]} Kf7 {[%emt 0:08:56]} 11. Ng5+ {[%emt 0:00:47]} Ke8 {[%emt 0:01:20]} 12. Ne6 {[%emt 0:00:03]} Kf7 {[%emt 0:00:43]} 13. Ng5+ {[%emt 0:00:14]} Ke8 {[%emt 0:00:08]} 14. Ne6 {[%emt 0:00:05]} 1/2-1/2

[Event "XIV Closed IM BCC 2021"]
[Site "Barcelona"]
[Date "2021.05.04"]
[Round "2.1"]
[White "Msellek, Ilyass"]
[Black "Munoz, Miguel"]
[Result "1/2-1/2"]
[ECO "B01"]
[WhiteElo "2342"]
[BlackElo "2462"]
[Annotator "ChessBase"]
[PlyCount "75"]
[EventDate "2021.05.03"]
[EventType "tourn"]
[EventCountry "ESP"]
[SourceTitle "playchess.com"]
[Source "ChessBase"]
[SourceQuality "1"]
[TimeControl "5400+30"]

1. e4 {[%emt 0:00:00]} d5 {[%emt 0:03:11]} 2. exd5 {[%emt 0:00:00]} Qxd5 {[%emt 0:00:30]} 3. Nc3 {[%emt 0:00:39]} Qa5 {[%emt 0:00:08]} 4. d4 {[%emt 0:00:49]} Nf6 {[%emt 0:00:09]} 5. Nf3 {[%emt 0:00:53]} Bg4 {[%emt 0:00:14]} 6. h3 {[%emt 0:00:35]} Bxf3 {[%emt 0:00:07]} 7. Qxf3 {[%emt 0:00:09]} c6 {[%emt 0:00:07]} 8. Bd2 {[%emt 0:03:23]} Nbd7 {[%emt 0:00:39]} 9. O-O-O {[%emt 0:03:26]} e6 {[%emt 0:00:22]} 10. Bd3 {[%emt 0:02:10]} Bb4 {[%emt 0:01:01]} 11. a3 {[%emt 0:02:52]} Bxc3 {[%emt 0:00:34]} 12. Bxc3 {[%emt 0:00:04]} Qd5 {[%emt 0:00:11]} 13. Qg3 {[%emt 0:02:17]} O-O {[%emt 0:01:08]} 14. Rhe1 {[%emt 0:07:03]} Qa2 {[%emt 0:15:01]} 15. d5 {[%emt 0:03:31]} cxd5 {[%emt 0:04:01]} 16. Kd2 {[%emt 0:02:28]} d4 {[%emt 0:02:22]} 17. Bxd4 {[%emt 0:00:13]} Rac8 {[%emt 0:00:32]} 18. c4 {[%emt 0:03:03]} Kh8 {[%emt 0:04:19]} 19. Kc2 {[%emt 0:02:23]} b5 {[%emt 0:03:16]} 20. Ra1 {[%emt 0:03:42]} Rxc4+ {[%emt 0:00:20]} 21. Kd2 {[%emt 0:01:39]} Qb3 {[%emt 0:01:44]} 22. Bxc4 {[%emt 0:00:15]} Qxc4 {[%emt 0:00:08]} 23. Qd3 {[%emt 0:00:59]} Qc6 {[%emt 0:00:16]} 24. Rac1 {[%emt 0:03:09]} Qxg2 {[%emt 0:01:09]} 25. Rc7 {[%emt 0:02:05]} Nb6 {[%emt 0:06:27]} 26. Kc2 {[%emt 0:05:08]} Rd8 {[%emt 0:14:00]} 27. Rxf7 {[%emt 0:29:15]} Kg8 {[%emt 0:09:36]} 28. Rc7 {[%emt 0:06:42]} Nbd5 {[%emt 0:02:30]} 29. Rc5 {[%emt 0:07:20]} Nf4 {[%emt 0:05:37]} 30. Qg3 {[%emt 0:02:26]} Rxd4 {[%emt 0:00:30]} 31. Rc8+ {[%emt 0:00:16]} Kf7 {[%emt 0:00:13]} 32. Rc7+ {[%emt 0:00:26]} Nd7 {[%emt 0:02:24]} 33. Rxd7+ {[%emt 0:00:55]} Rxd7 {[%emt 0:00:11]} 34. Qxf4+ {[%emt 0:00:05]} Ke7 {[%emt 0:00:40]} 35. Qh4+ {[%emt 0:00:34]} Kf7 {[%emt 0:00:56]} 36. Qf4+ {[%emt 0:00:04]} Ke7 {[%emt 0:00:45]} 37. Qh4+ {[%emt 0:00:05]} Kf7 {[%emt 0:00:42]} 38. Qf4+ {[%emt 0:00:05]} 1/2-1/2

[Event "XIV Closed IM BCC 2021"]
[Site "Barcelona"]
[Date "2021.05.04"]
[Round "2.2"]
[White "Ryan, Joseph"]
[Black "Perez Perez, Gabriel"]
[Result "1/2-1/2"]
[ECO "A05"]
[WhiteElo "2271"]
[BlackElo "2079"]
[Annotator "NA"]
[PlyCount "60"]
[EventDate "2021.05.03"]
[EventType "tourn"]
[EventCountry "ESP"]
[SourceTitle "playchess.com"]
[Source "ChessBase"]
[SourceQuality "1"]
[TimeControl "5400+30"]

1. Nf3 {[%emt 0:02:38]} Nf6 {[%emt 0:00:00]} 2. c4 {[%emt 0:00:23]} g6 {[%emt 0:00:26]} 3. b3 {[%emt 0:00:28]} Bg7 {[%emt 0:00:22]} 4. Bb2 {[%emt 0:00:10]} O-O {[%emt 0:00:09]} 5. g3 {[%emt 0:00:17]} c5 {[%emt 0:09:37]} 6. Bg2 {[%emt 0:01:38]} d5 {[%emt 0:00:19]} 7. cxd5 {[%emt 0:03:53]} Nxd5 {[%emt 0:00:29]} 8. Bxg7 {[%emt 0:00:26]} Kxg7 {[%emt 0:00:15]} 9. O-O {[%emt 0:03:32]} Nc6 {[%emt 0:00:14]} 10. d4 {[%emt 0:09:01]} cxd4 {[%emt 0:00:30]} 11. Nxd4 {[%emt 0:00:56]} Ndb4 {[%emt 0:00:26]} 12. Nxc6 {[%emt 0:03:32]} Nxc6 {[%emt 0:13:43]} 13. Nc3 {[%emt 0:07:10]} Qa5 {[%emt 0:03:35]} 14. Qc2 {[%emt 0:00:50]} Bd7 {[%emt 0:24:37]} 15. Rfd1 {[%emt 0:04:54]} Rfd8 {[%emt 0:00:20]} 16. Qb2 {[%emt 0:06:06]} f6 {[%emt 0:07:43]} 17. Nd5 {[%emt 0:07:18]} Be6 {[%emt 0:02:55]} 18. Nf4 {[%emt 0:03:15]} Bf7 {[%emt 0:00:22]} 19. h4 {[%emt 0:08:12]} Rxd1+ {[%emt 0:01:23]} 20. Rxd1 {[%emt 0:00:06]} Rd8 {[%emt 0:00:06]} 21. Rxd8 {[%emt 0:00:40]} Qxd8 {[%emt 0:05:32]} 22. Qc2 {[%emt 0:08:43]} e5 {[%emt 0:05:47]} 23. Nd3 {[%emt 0:00:14]} Nd4 {[%emt 0:02:11]} 24. Qd2 {[%emt 0:04:12]} Bd5 {[%emt 0:01:23]} 25. Bxd5 Qxd5 {[%emt 0:00:02]} 26. Ne1 {[%emt 0:03:40]} Qc6 {[%emt 0:06:52]} 27. e3 {[%emt 0:00:59]} Qc1 {[%emt 0:01:55]} 28. Qb4 {[%emt 0:06:19]} Nc2 {[%emt 0:01:28]} 29. Qe7+ {[%emt 0:01:47]} Kg8 {[%emt 0:00:19]} 30. Qe8+ {[%emt 0:00:15]} Kg7 {[%emt 0:00:06]} 1/2-1/2

[Event "XIV Closed IM BCC 2021"]
[Site "Barcelona"]
[Date "2021.05.04"]
[Round "2.3"]
[White "Benedetti, Julio"]
[Black "Kuhn, Clement"]
[Result "1/2-1/2"]
[ECO "C06"]
[WhiteElo "2282"]
[BlackElo "2252"]
[Annotator "NA"]
[PlyCount "147"]
[EventDate "2021.05.03"]
[EventType "tourn"]
[EventCountry "ESP"]
[SourceTitle "playchess.com"]
[Source "ChessBase"]
[SourceQuality "1"]
[TimeControl "5400+30"]

1. e4 {[%emt 0:00:00]} e6 {[%emt 0:00:00]} 2. d4 {[%emt 0:00:00]} d5 {[%emt 0:00:00]} 3. Nd2 {[%emt 0:00:00]} Nf6 {[%emt 0:00:00]} 4. e5 {[%emt 0:00:35]} Nfd7 {[%emt 0:00:00]} 5. Bd3 {[%emt 0:00:15]} c5 {[%emt 0:00:00]} 6. c3 {[%emt 0:00:13]} Nc6 {[%emt 0:00:10]} 7. Ne2 {[%emt 0:00:21]} cxd4 {[%emt 0:00:06]} 8. cxd4 {[%emt 0:00:08]} f6 {[%emt 0:00:07]} 9. exf6 {[%emt 0:00:44]} Nxf6 {[%emt 0:00:06]} 10. Nf3 {[%emt 0:00:33]} Bd6 {[%emt 0:00:14]} 11. O-O {[%emt 0:00:36]} Qc7 {[%emt 0:00:06]} 12. Bg5 {[%emt 0:00:44]} O-O {[%emt 0:00:09]} 13. Bh4 {[%emt 0:00:21]} Nh5 {[%emt 0:02:42]} 14. Qc2 {[%emt 0:00:17]} h6 {[%emt 0:00:08]} 15. Bh7+ {[%emt 0:00:22]} Kh8 {[%emt 0:00:07]} 16. Bg6 {[%emt 0:00:39]} Rxf3 {[%emt 0:00:08]} 17. Bxh5 {[%emt 0:00:20]} Rf5 {[%emt 0:01:52]} 18. Bg6 {[%emt 0:00:21]} Bxh2+ {[%emt 0:00:05]} 19. Kh1 {[%emt 0:00:06]} Bd6 {[%emt 0:00:05]} 20. Bxf5 {[%emt 0:00:29]} exf5 {[%emt 0:00:04]} 21. Rae1 {[%emt 0:02:16]} Qf7 {[%emt 0:01:24]} 22. Bg3 {[%emt 0:04:33]} Bb4 {[%emt 0:12:00]} 23. Rd1 {[%emt 0:02:05]} Bd7 {[%emt 0:01:44]} 24. a3 {[%emt 0:02:28]} Ba5 {[%emt 0:02:44]} 25. Be5 {[%emt 0:51:12]} Nxe5 {[%emt 0:07:23]} 26. dxe5 {[%emt 0:00:07]} Bb5 {[%emt 0:00:48]} 27. Kg1 {[%emt 0:02:17]} Re8 {[%emt 0:00:51]} 28. b4 {[%emt 0:08:31]} Bc7 {[%emt 0:06:40]} 29. e6 {[%emt 0:02:18]} Bh2+ {[%emt 0:02:32]} 30. Kxh2 {[%emt 0:02:02]} Qh5+ {[%emt 0:01:24]} 31. Kg1 {[%emt 0:00:14]} Bxe2 {[%emt 0:00:20]} 32. f3 {[%emt 0:05:30]} Bxf1 {[%emt 0:00:29]} 33. Kxf1 {[%emt 0:01:04]} Rxe6 {[%emt 0:01:47]} 34. Kg1 {[%emt 0:00:25]} Re8 {[%emt 0:08:55]} 35. Qf2 {[%emt 0:05:20]} Qg5 {[%emt 0:02:35]} 36. Rxd5 {[%emt 0:02:34]} Qc1+ {[%emt 0:02:21]} 37. Kh2 {[%emt 0:00:03]} Qxa3 {[%emt 0:00:46]} 38. Qc5 {[%emt 0:02:59]} f4 {[%emt 0:16:36]} 39. Rd7 {[%emt 0:04:53]} Qa1 {[%emt 0:17:28]} 40. Rd4 {[%emt 0:01:11]} b6 {[%emt 0:02:37]} 41. Qd6 {[%emt 0:00:34]} Qe1 {[%emt 0:01:47]} 42. Qxf4 {[%emt 0:00:32]} Qe5 {[%emt 0:00:53]} 43. Qxe5 {[%emt 0:00:33]} Rxe5 44. Rd7 Rb5 {[%emt 0:00:11]} 45. Rxa7 {[%emt 0:01:00]} Rxb4 {[%emt 0:00:01]} 46. Kg3 {[%emt 0:00:34]} Kh7 {[%emt 0:00:32]} 47. Kf2 {[%emt 0:00:27]} Rb2+ {[%emt 0:00:03]} 48. Kg3 {[%emt 0:00:15]} b5 {[%emt 0:00:21]} 49. Rb7 {[%emt 0:00:13]} b4 {[%emt 0:00:03]} 50. Kf4 {[%emt 0:00:27]} Rxg2 {[%emt 0:00:51]} 51. Rxb4 {[%emt 0:00:04]} Kg6 {[%emt 0:00:22]} 52. Rb5 {[%emt 0:00:42]} Rg5 {[%emt 0:02:02]} 53. Rb6+ {[%emt 0:01:19]} Kh5 {[%emt 0:00:22]} 54. Rb1 {[%emt 0:00:07]} Rg2 {[%emt 0:00:11]} 55. Rh1+ {[%emt 0:00:29]} Kg6 {[%emt 0:00:03]} 56. Ra1 {[%emt 0:01:02]} h5 {[%emt 0:00:09]} 57. Ra6+ {[%emt 0:00:33]} Kh7 {[%emt 0:00:02]} 58. Ke3 g6 {[%emt 0:00:42]} 59. f4 {[%emt 0:00:37]} h4 {[%emt 0:01:40]} 60. Kf3 {[%emt 0:00:48]} Rg3+ {[%emt 0:00:01]} 61. Kf2 {[%emt 0:00:06]} Kg7 {[%emt 0:00:52]} 62. Rb6 {[%emt 0:00:47]} Kf7 {[%emt 0:00:11]} 63. Ra6 {[%emt 0:00:09]} Rb3 {[%emt 0:00:23]} 64. Kg2 {[%emt 0:00:32]} Re3 {[%emt 0:00:13]} 65. Ra7+ {[%emt 0:00:32]} Kg8 {[%emt 0:04:58]} 66. Rb7 {[%emt 0:00:40]} Rg3+ {[%emt 0:00:35]} 67. Kf2 {[%emt 0:00:08]} Rg4 {[%emt 0:00:11]} 68. Kf3 {[%emt 0:00:04]} Rg1 {[%emt 0:00:06]} 69. Kf2 {[%emt 0:00:10]} Ra1 {[%emt 0:00:13]} 70. Kg2 {[%emt 0:00:32]} Ra4 {[%emt 0:00:18]} 71. Kf3 {[%emt 0:00:21]} Ra3+ {[%emt 0:00:28]} 72. Kg4 {[%emt 0:01:30]} h3 {[%emt 0:00:07]} 73. Rb2 {[%emt 0:00:13]} Kg7 {[%emt 0:00:09]} 74. Rh2 {[%emt 0:00:05]} 1/2-1/2

[Event "XIV Closed IM BCC 2021"]
[Site "Barcelona"]
[Date "2021.05.04"]
[Round "2.4"]
[White "Asis Gargatagli, Hipolito"]
[Black "Dalaud, Dorian"]
[Result "1-0"]
[ECO "B30"]
[WhiteElo "2454"]
[BlackElo "2306"]
[Annotator "ChessBase"]
[PlyCount "73"]
[EventDate "2021.05.03"]
[EventType "tourn"]
[EventCountry "ESP"]
[SourceTitle "playchess.com"]
[Source "ChessBase"]
[SourceQuality "1"]
[TimeControl "5400+30"]

1. e4 {[%emt 0:01:43]} c5 {[%emt 0:00:00]} 2. Nf3 {[%emt 0:02:20]} Nc6 {[%emt 0:00:03]} 3. Bb5 {[%emt 0:00:33]} d6 {[%emt 0:00:07]} 4. O-O {[%emt 0:00:05]} Bg4 {[%emt 0:00:04]} 5. h3 {[%emt 0:00:28]} Bh5 {[%emt 0:00:49]} 6. c3 {[%emt 0:01:49]} Nf6 {[%emt 0:05:47]} 7. d4 {[%emt 0:02:54]} cxd4 {[%emt 0:00:07]} 8. cxd4 {[%emt 0:00:04]} d5 {[%emt 0:00:52]} 9. exd5 {[%emt 0:24:09]} Bxf3 {[%emt 0:00:42]} 10. Qxf3 {[%emt 0:00:37]} Qxd5 {[%emt 0:00:08]} 11. Qd3 {[%emt 0:00:53]} Rd8 {[%emt 0:11:44]} 12. Nc3 {[%emt 0:02:03]} Qxd4 {[%emt 0:08:36]} 13. Qf3 {[%emt 0:01:22]} Qb6 {[%emt 0:10:47]} 14. Be3 {[%emt 0:18:08]} Qc7 {[%emt 0:00:02]} 15. Bf4 {[%emt 0:02:20]} Qc8 {[%emt 0:03:47]} 16. Bg5 {[%emt 0:01:01]} e6 {[%emt 0:05:04]} 17. Bxf6 {[%emt 0:08:13]} gxf6 {[%emt 0:00:14]} 18. Qxf6 {[%emt 0:00:13]} Rg8 {[%emt 0:00:08]} 19. Rad1 {[%emt 0:00:31]} Rg6 {[%emt 0:10:15]} 20. Bxc6+ {[%emt 0:04:19]} bxc6 {[%emt 0:00:07]} 21. Qh8 {[%emt 0:01:37]} Rg7 {[%emt 0:15:11]} 22. Ne4 {[%emt 0:04:01]} Ke7 {[%emt 0:02:17]} 23. Ng3 {[%emt 0:00:38]} Rd5 {[%emt 0:03:26]} 24. Rxd5 {[%emt 0:01:52]} cxd5 {[%emt 0:00:06]} 25. Nh5 {[%emt 0:01:33]} Rg6 {[%emt 0:00:25]} 26. Qd4 {[%emt 0:00:19]} Qc7 {[%emt 0:01:37]} 27. Re1 {[%emt 0:04:46]} Kd8 {[%emt 0:06:59]} 28. Qh8 {[%emt 0:00:23]} Ke7 {[%emt 0:00:44]} 29. Ng3 {[%emt 0:04:26]} Qf4 {[%emt 0:01:51]} 30. Qc3 {[%emt 0:00:33]} Qc4 {[%emt 0:06:08]} 31. Qa3+ {[%emt 0:02:24]} Ke8 {[%emt 0:01:08]} 32. Qxa7 {[%emt 0:00:08]} Bc5 {[%emt 0:01:07]} 33. Qb8+ {[%emt 0:00:50]} Kd7 {[%emt 0:00:21]} 34. Qb7+ {[%emt 0:00:35]} Ke8 {[%emt 0:00:25]} 35. Nf5 {[%emt 0:04:35]} Bxf2+ {[%emt 0:01:45]} 36. Kh1 {[%emt 0:00:04]} Qc5 {[%emt 0:00:15]} 37. b4 {[%emt 0:00:20]} 1-0

[Event "XIV Closed IM BCC 2021"]
[Site "Barcelona"]
[Date "2021.05.04"]
[Round "2.5"]
[White "Boyer, Mahel"]
[Black "Martin Barcelo, Carles"]
[Result "1-0"]
[ECO "C02"]
[WhiteElo "2333"]
[BlackElo "2201"]
[Annotator "NA"]
[PlyCount "93"]
[EventDate "2021.05.03"]
[EventType "tourn"]
[EventCountry "ESP"]
[SourceTitle "playchess.com"]
[Source "ChessBase"]
[SourceQuality "1"]
[TimeControl "5400+30"]

1. e4 e6 {[%emt 0:01:58]} 2. d4 {[%emt 0:01:05]} d5 {[%emt 0:00:06]} 3. e5 {[%emt 0:00:43]} c5 {[%emt 0:00:32]} 4. c3 {[%emt 0:00:07]} Nc6 {[%emt 0:02:45]} 5. Nf3 {[%emt 0:00:09]} Bd7 {[%emt 0:00:30]} 6. Be2 {[%emt 0:00:31]} f6 {[%emt 0:04:02]} 7. O-O {[%emt 0:01:06]} Qc7 {[%emt 0:13:23]} 8. Re1 {[%emt 0:05:49]} fxe5 {[%emt 0:11:51]} 9. Nxe5 {[%emt 0:01:09]} Nxe5 {[%emt 0:00:10]} 10. dxe5 {[%emt 0:00:05]} O-O-O {[%emt 0:01:59]} 11. Bf1 {[%emt 0:00:19]} Nh6 {[%emt 0:03:45]} 12. a4 {[%emt 0:06:45]} Nf5 {[%emt 0:05:42]} 13. Na3 {[%emt 0:04:05]} Kb8 {[%emt 0:05:02]} 14. b4 {[%emt 0:23:14]} cxb4 {[%emt 0:08:21]} 15. cxb4 {[%emt 0:01:31]} Bxb4 {[%emt 0:00:19]} 16. Bd2 {[%emt 0:01:09]} Bxd2 {[%emt 0:03:12]} 17. Qxd2 {[%emt 0:01:13]} Rc8 {[%emt 0:00:44]} 18. Bb5 {[%emt 0:11:09]} Bc6 {[%emt 0:07:55]} 19. Rab1 {[%emt 0:06:01]} Ka8 {[%emt 0:02:49]} 20. Bd3 {[%emt 0:00:51]} Rhf8 {[%emt 0:03:00]} 21. a5 {[%emt 0:01:07]} Qe7 {[%emt 0:10:28]} 22. Nc2 {[%emt 0:05:13]} g5 {[%emt 0:01:50]} 23. Rbc1 {[%emt 0:03:18]} Bd7 {[%emt 0:01:43]} 24. a6 {[%emt 0:06:02]} b6 {[%emt 0:00:18]} 25. Bxf5 {[%emt 0:00:16]} Rxf5 {[%emt 0:00:07]} 26. Ne3 {[%emt 0:01:36]} Rff8 {[%emt 0:07:31]} 27. Nxd5 {[%emt 0:00:41]} Qd8 {[%emt 0:00:07]} 28. Nf6 {[%emt 0:03:00]} Bb5 {[%emt 0:01:26]} 29. Qa2 {[%emt 0:03:09]} Qe7 {[%emt 0:00:31]} 30. Ne4 {[%emt 0:00:35]} Qb4 {[%emt 0:02:03]} 31. Qxe6 {[%emt 0:07:28]} Bxa6 {[%emt 0:00:32]} 32. Rb1 {[%emt 0:05:04]} Qd4 {[%emt 0:00:42]} 33. Rbd1 {[%emt 0:00:18]} Qb2 {[%emt 0:00:21]} 34. Nf6 {[%emt 0:01:09]} Bb7 {[%emt 0:00:20]} 35. Qf5 {[%emt 0:00:31]} Rc7 {[%emt 0:00:46]} 36. h3 {[%emt 0:00:10]} Re7 {[%emt 0:00:14]} 37. Rd7 {[%emt 0:00:50]} Qb4 {[%emt 0:00:40]} 38. Red1 {[%emt 0:00:04]} a5 {[%emt 0:00:40]} 39. e6 {[%emt 0:00:42]} Bc6 {[%emt 0:00:31]} 40. R7d6 {[%emt 0:01:03]} Kb7 {[%emt 0:00:31]} 41. Rxc6 {[%emt 0:00:33]} Kxc6 {[%emt 0:00:27]} 42. Qd5+ {[%emt 0:00:10]} Kc7 {[%emt 0:00:04]} 43. Nd7 {[%emt 0:00:46]} Qf4 {[%emt 0:01:01]} 44. Nxf8 {[%emt 0:00:22]} Qxf8 {[%emt 0:00:03]} 45. Rc1+ {[%emt 0:00:20]} Kb8 {[%emt 0:00:05]} 46. Qd6+ {[%emt 0:00:08]} Ka8 {[%emt 0:00:54]} 47. Rc7 {[%emt 0:00:05]} 1-0

[Event "XIV Closed IM BCC 2021"]
[Site "Barcelona"]
[Date "2021.05.05"]
[Round "3.1"]
[White "Martin Barcelo, Carles"]
[Black "Msellek, Ilyass"]
[Result "1/2-1/2"]
[ECO "B40"]
[WhiteElo "2201"]
[BlackElo "2342"]
[Annotator "NA"]
[PlyCount "51"]
[EventDate "2021.05.03"]
[EventType "tourn"]
[EventCountry "ESP"]
[SourceTitle "playchess.com"]
[Source "ChessBase"]
[SourceQuality "1"]
[TimeControl "5400+30"]

1. e4 {[%emt 0:00:00]} c5 {[%emt 0:02:13]} 2. Nf3 {[%emt 0:00:00]} e6 {[%emt 0:00:10]} 3. b3 {[%emt 0:00:42]} b6 {[%emt 0:00:43]} 4. Bb2 {[%emt 0:01:46]} Bb7 {[%emt 0:00:25]} 5. Nc3 {[%emt 0:01:08]} Nc6 {[%emt 0:00:25]} 6. d4 {[%emt 0:01:48]} cxd4 {[%emt 0:00:19]} 7. Nxd4 {[%emt 0:00:06]} Nf6 {[%emt 0:01:18]} 8. Nxc6 {[%emt 0:00:29]} Bxc6 {[%emt 0:00:17]} 9. Bd3 {[%emt 0:00:16]} Bb4 {[%emt 0:05:35]} 10. O-O {[%emt 0:00:53]} Qc7 {[%emt 0:15:51]} 11. Qe2 {[%emt 0:02:23]} Qe5 {[%emt 0:06:50]} 12. Nd1 {[%emt 0:01:16]} Qh5 {[%emt 0:07:09]} 13. Qxh5 {[%emt 0:03:13]} Nxh5 {[%emt 0:00:02]} 14. g3 {[%emt 0:10:46]} Nf6 {[%emt 0:07:52]} 15. a3 {[%emt 0:12:05]} Be7 {[%emt 0:01:13]} 16. Re1 {[%emt 0:00:52]} b5 {[%emt 0:09:13]} 17. Nc3 {[%emt 0:07:09]} a6 {[%emt 0:06:36]} 18. a4 {[%emt 0:04:06]} b4 {[%emt 0:04:09]} 19. Nb1 {[%emt 0:01:58]} Bc5 {[%emt 0:02:28]} 20. h3 {[%emt 0:08:39]} d6 {[%emt 0:07:12]} 21. Nd2 {[%emt 0:04:30]} Ke7 {[%emt 0:00:24]} 22. Bf1 {[%emt 0:07:14]} h5 {[%emt 0:05:57]} 23. Bg2 {[%emt 0:04:25]} Nd7 {[%emt 0:00:31]} 24. Nc4 {[%emt 0:04:54]} Rac8 {[%emt 0:02:56]} 25. Rad1 {[%emt 0:04:09]} f6 {[%emt 0:00:06]} 26. Bd4 {[%emt 0:05:10]} 1/2-1/2

[Event "XIV Closed IM BCC 2021"]
[Site "Barcelona"]
[Date "2021.05.05"]
[Round "3.3"]
[White "Kuhn, Clement"]
[Black "Asis Gargatagli, Hipolito"]
[Result "0-1"]
[ECO "C78"]
[WhiteElo "2252"]
[BlackElo "2454"]
[Annotator "ChessBase"]
[PlyCount "54"]
[EventDate "2021.05.03"]
[EventType "tourn"]
[EventCountry "ESP"]
[SourceTitle "playchess.com"]
[Source "ChessBase"]
[SourceQuality "1"]
[TimeControl "5400+30"]

1. e4 {[%emt 0:00:00]} e5 {[%emt 0:00:00]} 2. Nf3 {[%emt 0:00:00]} Nc6 {[%emt 0:00:00]} 3. Bb5 {[%emt 0:00:00]} a6 {[%emt 0:00:00]} 4. Ba4 {[%emt 0:00:00]} Nf6 {[%emt 0:00:00]} 5. O-O {[%emt 0:00:00]} Bc5 {[%emt 0:00:00]} 6. c3 {[%emt 0:07:44]} b5 {[%emt 0:00:14]} 7. Bc2 {[%emt 0:00:05]} d5 {[%emt 0:00:05]} 8. exd5 {[%emt 0:00:15]} Qxd5 {[%emt 0:00:09]} 9. d4 {[%emt 0:09:48]} exd4 {[%emt 0:00:06]} 10. Re1+ {[%emt 0:00:38]} Be6 {[%emt 0:00:22]} 11. Bb3 {[%emt 0:02:35]} Qd6 {[%emt 0:00:11]} 12. Bxe6 {[%emt 0:11:05]} fxe6 {[%emt 0:00:36]} 13. Qb3 {[%emt 0:03:23]} O-O-O {[%emt 0:15:41]} 14. Qxe6+ {[%emt 0:12:42]} Qxe6 {[%emt 0:06:19]} 15. Rxe6 {[%emt 0:00:14]} Kb7 {[%emt 0:00:07]} 16. Bg5 {[%emt 0:05:36]} Rhe8 {[%emt 0:09:48]} 17. Rxe8 {[%emt 0:03:17]} Rxe8 {[%emt 0:00:29]} 18. Bxf6 {[%emt 0:03:22]} gxf6 {[%emt 0:01:08]} 19. Kf1 {[%emt 0:00:48]} d3 {[%emt 0:04:26]} 20. Ne1 {[%emt 0:02:05]} Ne5 {[%emt 0:00:11]} 21. Nd2 {[%emt 0:03:10]} Bb6 {[%emt 0:03:24]} 22. Nb3 {[%emt 0:13:36]} c5 {[%emt 0:03:24]} 23. Nd2 {[%emt 0:09:21]} c4 {[%emt 0:02:11]} 24. f3 {[%emt 0:05:05]} f5 {[%emt 0:01:46]} 25. b3 {[%emt 0:01:27]} Be3 {[%emt 0:02:24]} 26. Rd1 {[%emt 0:00:26]} Bxd2 {[%emt 0:00:35]} 27. Rxd2 {[%emt 0:00:12]} b4 {[%emt 0:00:30]} 0-1

[Event "XIV Closed IM BCC 2021"]
[Site "Barcelona"]
[Date "2021.05.05"]
[Round "3.4"]
[White "Perez Perez, Gabriel"]
[Black "Benedetti, Julio"]
[Result "1/2-1/2"]
[ECO "B90"]
[WhiteElo "2079"]
[BlackElo "2282"]
[Annotator "NA"]
[PlyCount "67"]
[EventDate "2021.05.03"]
[EventType "tourn"]
[EventCountry "ESP"]
[SourceTitle "playchess.com"]
[Source "ChessBase"]
[SourceQuality "1"]
[TimeControl "5400+30"]

1. e4 {[%emt 0:00:00]} c5 {[%emt 0:08:04]} 2. Nf3 {[%emt 0:00:00]} d6 {[%emt 0:00:14]} 3. d4 {[%emt 0:00:10]} cxd4 {[%emt 0:00:06]} 4. Nxd4 {[%emt 0:00:02]} Nf6 {[%emt 0:00:19]} 5. Nc3 {[%emt 0:00:28]} a6 {[%emt 0:00:09]} 6. Rg1 {[%emt 0:00:18]} e6 {[%emt 0:08:51]} 7. g4 {[%emt 0:02:12]} h6 {[%emt 0:00:43]} 8. h4 {[%emt 0:00:54]} Nfd7 {[%emt 0:08:51]} 9. g5 {[%emt 0:01:39]} hxg5 {[%emt 0:03:41]} 10. hxg5 {[%emt 0:00:53]} Ne5 {[%emt 0:09:56]} 11. Be3 {[%emt 0:10:45]} Qc7 {[%emt 0:08:12]} 12. f4 {[%emt 0:11:23]} Nc4 {[%emt 0:00:48]} 13. Bxc4 {[%emt 0:01:08]} Qxc4 {[%emt 0:00:05]} 14. Qd3 {[%emt 0:02:58]} Qxd3 {[%emt 0:12:10]} 15. cxd3 {[%emt 0:00:04]} Rh3 {[%emt 0:01:50]} 16. Kd2 {[%emt 0:04:12]} Rh2+ {[%emt 0:01:58]} 17. Nde2 {[%emt 0:02:16]} b5 {[%emt 0:00:26]} 18. Rh1 {[%emt 0:00:22]} Rxh1 {[%emt 0:00:25]} 19. Rxh1 {[%emt 0:00:13]} Bd7 {[%emt 0:03:05]} 20. Rh8 {[%emt 0:08:20]} b4 {[%emt 0:01:50]} 21. Nd1 {[%emt 0:00:10]} Nc6 {[%emt 0:02:35]} 22. Nd4 {[%emt 0:02:37]} Ne7 {[%emt 0:00:40]} 23. Nf3 {[%emt 0:10:23]} Ng6 {[%emt 0:01:28]} 24. Rh7 {[%emt 0:00:02]} Rc8 {[%emt 0:01:53]} 25. Nh4 {[%emt 0:04:33]} a5 {[%emt 0:06:43]} 26. Nxg6 {[%emt 0:03:02]} fxg6 {[%emt 0:00:02]} 27. Bd4 {[%emt 0:02:17]} Kf7 {[%emt 0:00:06]} 28. Ne3 {[%emt 0:00:55]} Kg8 {[%emt 0:02:31]} 29. Rh1 {[%emt 0:01:22]} Bb5 {[%emt 0:00:08]} 30. b3 {[%emt 0:06:11]} Be7 {[%emt 0:01:49]} 31. Nc4 {[%emt 0:02:15]} Rf8 {[%emt 0:03:17]} 32. Be3 {[%emt 0:08:00]} Kf7 {[%emt 0:00:33]} 33. a4 {[%emt 0:05:01]} bxa3 {[%emt 0:01:14]} 34. Nxa3 {[%emt 0:00:01]} 1/2-1/2